bitfinex/quotes_BTCUSD_20251019
["timestamp","ask_amount","ask_price","bid_price","bid_amount"]
[1760861908343,0.01466097,107000.0,106990.0,0.00340428]
[1760861908961,0.01466097,107000.0,106990.0,0.02209761]
[1760861910029,0.01628985,107000.0,106990.0,0.02209761]
[1760861911573,0.59376,107020.0,106990.0,0.02209761]
[1760861911784,5.0,107010.0,106990.0,0.02209761]
[1760861911982,5.0,107000.0,106990.0,0.02209761]
[1760861912200,5.0,107010.0,106990.0,0.05020596]
[1760861912404,5.0,107000.0,106990.0,0.05020596]
[1760861912634,5.0,107010.0,106990.0,0.05020596]
[1760861912847,5.0,107000.0,106990.0,0.05020596]
[1760861912995,5.0,107010.0,106990.0,0.05020596]
[1760861913195,5.0,107000.0,106990.0,0.05020596]
[1760861913403,5.0,107010.0,106990.0,0.05020596]
[1760861914107,5.0,107000.0,106990.0,0.05020596]
[1760861917253,0.01628948,107010.0,107000.0,0.18691588]
[1760861917451,0.00162886,107010.0,107000.0,0.19591588]
[1760861917671,0.02810164,107060.0,107030.0,0.19619943]
[1760861917886,5.01749088,107060.0,107040.0,0.01755092]
[1760861918086,0.01749088,107060.0,107040.0,0.20439355]
[1760861918278,0.0016284,107060.0,107050.0,0.23291483]
[1760861918455,0.0016284,107060.0,107050.0,0.0280909]
[1760861918656,0.0016284,107060.0,107050.0,0.21491948]
[1760861918981,0.00177792,107060.0,107050.0,0.30879948]
[1760861919138,0.00177792,107060.0,107050.0,0.75702813]
[1760861919340,0.00177792,107060.0,107050.0,0.30879948]
[1760861919543,0.00014952,107060.0,107050.0,0.30879948]
[1760861919759,0.00014952,107060.0,107050.0,0.4206559]
[1760861921808,0.00377992,107070.0,107050.0,0.4206559]
[1760861922024,0.01780682,107080.0,107060.0,0.0172661]
[1760861922238,0.01780682,107080.0,107060.0,0.03471164]
[1760861922439,0.01780682,107080.0,107060.0,0.20425293]
[1760861922440,0.00162812,107080.0,107060.0,0.20425293]
[1760861922644,5.0,107080.0,107060.0,0.22195187]
[1760861922844,0.00162801,107080.0,107060.0,0.20425293]
[1760861923056,0.00162801,107080.0,107060.0,0.29866381]
[1760861923255,0.00162801,107080.0,107070.0,0.28067368]
[1760861923551,0.0004,107090.0,107070.0,0.29811922]
[1760861923760,0.0004,107090.0,107080.0,0.01780166]
[1760861923982,0.0004,107090.0,107080.0,0.0352472]
[1760861924182,0.0004,107090.0,107080.0,0.22202344]
[1760861924410,0.0004,107090.0,107080.0,0.20422178]
[1760861925032,0.0004,107090.0,107080.0,0.3246405]
[1760861925267,0.0004,107100.0,107090.0,0.1867588]
[1760861925473,0.00054958,107100.0,107090.0,0.39253522]
[1760861925615,0.00054958,107100.0,107090.0,0.84076387]
[1760861925825,0.00054958,107100.0,107090.0,0.79253522]
[1760861926024,0.00054958,107100.0,107090.0,1.24076387]
[1760861926282,0.00054958,107100.0,107090.0,0.79253522]
[1760861927351,0.00054958,107100.0,107090.0,1.24076387]
[1760861927554,0.00054958,107100.0,107090.0,0.80136972]
[1760861927782,0.00054958,107100.0,107090.0,1.24959837]
[1760861928133,0.00054958,107100.0,107090.0,0.80136972]
[1760861928334,0.00054958,107100.0,107090.0,1.24959837]
[1760861929443,0.00054958,107100.0,107090.0,0.80136972]
[1760861929644,0.0004,107130.0,107110.0,0.18672392]
[1760861929835,0.0004,107130.0,107120.0,0.75291343]
[1760861930031,0.0004,107130.0,107120.0,0.76513518]
[1760861930303,0.0004,107130.0,107120.0,0.77887707]
[1760861930495,0.0004,107130.0,107120.0,0.33064842]
[1760861930704,0.0004,107130.0,107120.0,0.77887707]
[1760861930848,0.0004,107130.0,107120.0,0.33064842]
[1760861931068,0.0004,107130.0,107120.0,1.3215166]
[1760861931287,0.0004,107130.0,107120.0,0.87322044]
[1760861931504,0.0004,107140.0,107120.0,0.42499179]
[1760861931725,5.0,107180.0,107160.0,0.18663637]
[1760861931949,0.00014954,107180.0,107170.0,0.29592149]
[1760861932166,0.00014954,107180.0,107170.0,0.29779191]
[1760861932494,0.00014954,107180.0,107170.0,0.84043144]
[1760861932831,0.00014954,107180.0,107170.0,0.39220279]
[1760861933138,0.0002,107190.0,107170.0,0.84043144]
[1760861933341,0.0002,107190.0,107180.0,0.1100622]
[1760861933551,0.0002,107190.0,107180.0,0.12727473]
[1760861933752,0.0002,107190.0,107180.0,0.11162341]
[1760861933953,0.0002,107190.0,107180.0,0.20586341]
[1760861934165,0.0002,107190.0,107180.0,0.11145253]
[1760861934367,0.0002,107190.0,107180.0,0.13951127]
[1760861934745,0.1403388,107210.0,107180.0,0.13951127]
[1760861934966,5.00162543,107200.0,107190.0,0.01588736]
[1760861935169,0.00177486,107200.0,107190.0,0.03309989]
[1760861935576,0.00643067,107200.0,107190.0,0.03309989]
[1760861936176,0.19299783,107200.0,107190.0,0.01721253]
[1760861936575,5.28723783,107200.0,107190.0,0.01721253]
[1760861938222,5.30187482,107200.0,107190.0,0.01721253]
[1760861938622,5.2856124,107200.0,107190.0,0.01721253]
[1760861938823,5.30187608,107200.0,107190.0,0.01721253]
[1760861939249,5.3962825,107200.0,107190.0,0.01721253]
[1760861939456,5.31187606,107200.0,107190.0,0.01721253]
[1760861940636,5.33994506,107200.0,107190.0,0.01721253]
[1760861941033,0.19596292,107170.0,107140.0,0.04581457]
[1760861941251,0.19596292,107170.0,107140.0,0.04522128]
[1760861941252,5.0,107160.0,107140.0,0.04522128]
[1760861941457,0.00286645,107150.0,107140.0,0.04522128]
[1760861942427,0.00286645,107150.0,107140.0,0.04537082]
[1760861946401,0.00162681,107160.0,107140.0,0.04537082]
[1760861947003,0.00162681,107160.0,107140.0,0.06077687]
[1760861947286,0.00162681,107160.0,107150.0,0.83253375]
[1760861947494,0.09424,107210.0,107170.0,0.64417848]
[1760861947698,0.00162655,107190.0,107180.0,0.01450427]
[1760861947885,0.00162655,107190.0,107180.0,0.20375425]
[1760861948074,0.53564,107220.0,107180.0,0.2411419]
[1760861948279,5.0,107210.0,107180.0,0.33555278]
[1760861948480,5.0,107210.0,107190.0,0.01652721]
[1760861948638,5.0,107220.0,107190.0,0.03367949]
[1760861948843,5.00014943,107220.0,107190.0,0.03367949]
[1760861949047,5.0,107210.0,107190.0,0.03367949]
[1760861949504,0.00014943,107220.0,107190.0,0.04300871]
[1760861949710,0.00177573,107220.0,107190.0,0.11297845]
[1760861950157,0.00177573,107220.0,107190.0,0.29956246]
[1760861950361,0.00177573,107220.0,107190.0,0.38464411]
[1760861950573,0.01640716,107220.0,107190.0,0.18873088]
[1760861950773,0.01478086,107220.0,107190.0,0.40104389]
[1760861950976,0.00014943,107220.0,107190.0,0.38464222]
[1760861951379,0.00014943,107220.0,107200.0,0.01566691]
[1760861951957,0.00014943,107220.0,107200.0,0.20223202]
[1760861952159,0.00014943,107220.0,107190.0,0.38464222]
[1760861952401,0.00014943,107220.0,107200.0,0.01402263]
[1760861952606,0.00014943,107220.0,107200.0,0.20058631]
[1760861952811,0.00014943,107220.0,107200.0,0.18656368]
[1760861953018,0.00014943,107220.0,107210.0,0.01402132]
[1760861954444,0.01477937,107220.0,107200.0,0.01402132]
[1760861954605,0.01477937,107220.0,107200.0,0.20058768]
[1760861954808,0.00014943,107220.0,107200.0,0.18656636]
[1760861955055,0.00014943,107220.0,107210.0,0.01384394]
[1760861955268,0.00014943,107220.0,107210.0,0.38908458]
[1760861955436,0.00265496,107220.0,107210.0,0.82346929]
[1760861955633,0.00265496,107220.0,107210.0,0.37524064]
[1760861956792,0.00265496,107220.0,107210.0,0.18869088]
[1760861957002,0.00265496,107220.0,107210.0,0.09441088]
[1760861957237,0.00265496,107220.0,107200.0,0.09428]
[1760861957443,0.00014943,107220.0,107200.0,0.09441088]
[1760861957667,0.00014943,107220.0,107210.0,0.01397628]
[1760861957875,0.00014943,107220.0,107200.0,0.18869088]
[1760861958090,0.00170604,107230.0,107220.0,0.18653236]
[1760861958308,0.0917636,107240.0,107230.0,0.18651496]
[1760861958515,0.01462998,107270.0,107260.0,5.0]
[1760861958723,0.01675396,107270.0,107260.0,5.6898228]
[1760861959140,0.00212398,107270.0,107260.0,5.70445278]
[1760861959343,0.0004983,107270.0,107260.0,5.70445278]
[1760861959553,0.0004983,107270.0,107260.0,5.80886365]
[1760861960390,0.00139594,107300.0,107290.0,0.18641066]
[1760861960602,0.00139594,107300.0,107290.0,0.28978949]
[1760861960603,0.00154536,107300.0,107290.0,0.28978949]
[1760861961245,0.00154536,107300.0,107290.0,0.10337883]
[1760861961760,0.00154536,107300.0,107290.0,0.19778971]
[1760861962580,0.00154536,107300.0,107290.0,0.38420037]
[1760861962782,0.00154536,107300.0,107290.0,0.83242902]
[1760861963237,0.00154536,107300.0,107290.0,0.39320037]
[1760861963439,0.00154536,107300.0,107290.0,6.29965766]
[1760861963647,0.00154536,107300.0,107290.0,6.29103883]
[1760861963846,0.00154536,107300.0,107290.0,6.28203883]
[1760861964054,0.00154536,107300.0,107290.0,5.80458153]
[1760861964699,0.00154536,107300.0,107290.0,5.80462153]
[1760861964831,0.00154536,107300.0,107290.0,5.69982154]
[1760861965034,0.00154536,107300.0,107290.0,5.79462154]
[1760861965258,0.00154536,107300.0,107290.0,6.25285018]
[1760861965454,0.00154536,107300.0,107290.0,5.79462154]
[1760861965700,0.00154536,107300.0,107290.0,6.25285018]
[1760861965911,0.00154536,107300.0,107290.0,6.70107883]
[1760861966324,1e-08,107300.0,107290.0,6.70107883]
[1760861966536,1e-08,107300.0,107290.0,6.25285018]
[1760861966747,1e-08,107300.0,107290.0,6.70107883]
[1760861966959,1e-08,107300.0,107290.0,5.80462153]
[1760861967175,0.02767124,107350.0,107340.0,0.63455248]
[1760861967385,0.02767124,107350.0,107340.0,1.18662113]
[1760861967386,0.02782055,107350.0,107340.0,1.18662113]
[1760861967589,0.02782055,107350.0,107340.0,5.29016383]
[1760861967792,0.02782055,107350.0,107340.0,0.69016383]
[1760861968207,0.02782055,107350.0,107340.0,0.68973471]
[1760861968418,0.02782055,107350.0,107340.0,0.09441088]
[1760861968616,0.03497061,107350.0,107340.0,0.09441088]
[1760861969029,8e-05,107380.0,107340.0,0.37565471]
[1760861969237,0.0004975,107380.0,107350.0,5.20462082]
[1760861969467,0.0004975,107380.0,107370.0,0.63450042]
[1760861969667,0.0004975,107380.0,107370.0,0.69199177]
[1760861970200,0.0004975,107380.0,107370.0,0.68199177]
[1760861970437,0.0004975,107380.0,107370.0,0.69199177]
[1760861970875,0.0004975,107380.0,107370.0,1.50272906]
[1760861971081,0.03430536,107390.0,107380.0,0.19625442]
[1760861971281,0.03445452,107390.0,107380.0,0.30097442]
[1760861971441,0.03445452,107390.0,107380.0,0.29097442]
[1760861971644,0.03445452,107390.0,107380.0,0.19525442]
[1760861972151,5.13021452,107390.0,107350.0,0.19562082]
[1760861972356,5.0,107380.0,107340.0,0.28068355]
[1760861972570,5.0,107380.0,107340.0,0.28999974]
[1760861972787,5.0,107380.0,107350.0,0.18630559]
[1760861973000,0.03445452,107390.0,107360.0,0.19559657]
[1760861973209,0.09576,107380.0,107360.0,0.19559657]
[1760861973419,0.03445452,107390.0,107370.0,0.18627125]
[1760861973625,0.03445452,107390.0,107380.0,0.18625442]
[1760861973837,5.0,107400.0,107370.0,0.18627125]
[1760861974044,5.09588,107410.0,107370.0,0.18642041]
[1760861974249,5.09588,107410.0,107370.0,0.19573399]
[1760861974250,0.00162241,107400.0,107370.0,0.19573399]
[1760861974448,5.0,107390.0,107370.0,0.19573399]
[1760861974665,5.0,107390.0,107370.0,0.00014916]
[1760861974886,0.00162241,107400.0,107380.0,0.44822865]
[1760861975048,5.0,107410.0,107390.0,0.09441088]
[1760861975356,5.0,107410.0,107400.0,0.09441088]
[1760861976167,5.1862024,107410.0,107400.0,0.09441088]
[1760861976733,5.0,107410.0,107400.0,0.09441088]
[1760861977147,5.1862024,107410.0,107400.0,0.09441088]
[1760861977969,5.1862024,107410.0,107370.0,0.00014916]
[1760861978176,5.18625442,107380.0,107370.0,0.09456004]
[1760861978381,5.28241442,107380.0,107370.0,0.00014916]
[1760861978757,5.18625442,107380.0,107370.0,0.00014916]
[1760861978978,5.28403815,107380.0,107370.0,0.09456004]
[1760861979103,5.29865105,107380.0,107370.0,0.09456004]
[1760861979474,5.20249105,107380.0,107370.0,0.09456004]
[1760861979835,5.03339764,107380.0,107370.0,0.09456004]
[1760861980037,5.31581206,107380.0,107370.0,0.09456004]
[1760861980262,0.03339764,107380.0,107370.0,0.09456004]
[1760861980666,0.00929953,107380.0,107370.0,0.09456004]
[1760861980866,0.28236524,107390.0,107370.0,0.09456004]
[1760861981209,0.28236524,107390.0,107370.0,0.00014916]
[1760861981210,5.0,107380.0,107370.0,0.00014916]
[1760861982021,5.18625442,107380.0,107370.0,0.09456004]
[1760861982662,5.18787796,107380.0,107370.0,0.00014916]
[1760861983115,5.28399796,107380.0,107370.0,0.00014916]
[1760861984317,5.28399796,107380.0,107370.0,0.09456004]
[1760861984637,5.29861088,107380.0,107370.0,0.09456004]
[1760861985609,5.29861088,107380.0,107370.0,0.00014916]
[1760861985809,5.20249088,107380.0,107370.0,0.00014916]
[1760861986189,5.29857088,107380.0,107370.0,0.00014916]
[1760861986686,5.2996421,107380.0,107370.0,0.00014916]
[1760861987703,5.18894918,107380.0,107370.0,0.00014916]
[1760861987994,5.28502918,107380.0,107370.0,0.00014916]
[1760861989655,5.18894918,107380.0,107370.0,0.00014916]
[1760861989860,5.28498918,107380.0,107370.0,0.00014916]
[1760861990725,5.0,107340.0,107300.0,0.68555168]
[1760861990923,5.0,107330.0,107310.0,0.09441088]
[1760861992289,5.0,107330.0,107310.0,0.72901413]
[1760861992462,5.0,107330.0,107310.0,0.28078548]
[1760861992693,5.0,107330.0,107310.0,0.28078624]
[1760861992694,5.01740023,107330.0,107310.0,0.28078624]
[1760861992908,0.01740023,107330.0,107310.0,0.09441088]
[1760861993081,0.01740023,107330.0,107310.0,0.28078672]
[1760861993326,0.01740023,107330.0,107320.0,0.18635855]
[1760861993532,0.01740023,107330.0,107320.0,1.12899808]
[1760861994176,0.01740023,107330.0,107320.0,0.68076943]
[1760861994600,0.01740023,107330.0,107320.0,1.12899808]
[1760861994879,0.01740023,107330.0,107320.0,0.68976943]
[1760861995487,0.00162398,107340.0,107320.0,0.68976943]
[1760861995712,0.01903281,107340.0,107330.0,0.09441088]
[1760861995923,0.01903281,107340.0,107330.0,0.28075207]
[1760861996749,0.01903281,107340.0,107330.0,0.37675207]
[1760861996964,0.00162398,107340.0,107330.0,0.37675207]
[1760861997174,0.00162398,107340.0,107330.0,0.82498072]
[1760861997395,0.00162398,107340.0,107330.0,0.37675207]
[1760861998226,0.00162398,107340.0,107330.0,0.82498072]
[1760861998474,0.00162398,107340.0,107330.0,0.37675207]
[1760861998688,0.00162398,107340.0,107330.0,0.77675207]
[1760861999871,0.00162398,107340.0,107330.0,1.22498072]
[1760862000019,0.00162398,107340.0,107330.0,0.77675207]
[1760862000224,0.00162398,107340.0,107330.0,1.22498072]
[1760862000874,0.24802931,107420.0,107360.0,0.19559799]
[1760862000875,0.00931012,107410.0,107360.0,0.19559799]
[1760862001136,5.0,107390.0,107370.0,0.09441088]
[1760862001316,5.0,107380.0,107370.0,0.09441088]
[1760862001483,0.0174102,107380.0,107370.0,0.09441088]
[1760862002506,0.02672292,107380.0,107350.0,0.009]
[1760862002744,0.02672292,107380.0,107360.0,0.09441088]
[1760862002745,5.0,107370.0,107360.0,0.09441088]
[1760862002951,0.0174102,107370.0,107360.0,0.2807]
[1760862003359,0.0174102,107370.0,107360.0,0.3767]
[1760862003774,5.09424,107410.0,107370.0,0.19557658]
[1760862004085,5.0,107400.0,107380.0,0.11251725]
[1760862004284,0.01741535,107400.0,107380.0,0.11251725]
[1760862004711,0.01741535,107400.0,107380.0,0.20855725]
[1760862004849,0.01741535,107400.0,107380.0,0.19045088]
[1760862005050,0.01741535,107400.0,107390.0,0.01807198]
[1760862005249,0.01741535,107400.0,107390.0,0.11248286]
[1760862005913,0.01741551,107400.0,107390.0,0.20852286]
[1760862006085,0.01741551,107400.0,107390.0,0.19045088]
[1760862006692,0.01884347,107400.0,107390.0,0.09441088]
[1760862007295,0.01884347,107400.0,107390.0,0.1115337]
[1760862007496,0.01884347,107400.0,107390.0,0.09441088]
[1760862007700,5.2050632,107400.0,107390.0,0.09441088]
[1760862007899,5.0,107390.0,107360.0,0.09608]
[1760862008102,5.0,107380.0,107370.0,0.11132741]
[1760862008307,0.01741551,107380.0,107370.0,0.29759918]
[1760862008517,5.0,107390.0,107370.0,0.73822488]
[1760862008895,0.01740585,107390.0,107380.0,0.82497395]
[1760862009069,0.00014913,107410.0,107390.0,0.18623027]
[1760862009294,0.01755189,107410.0,107400.0,0.11151856]
[1760862009673,0.03215748,107410.0,107400.0,0.11151856]
[1760862009837,0.01475472,107410.0,107400.0,0.11151856]
[1760862010423,0.01475472,107410.0,107400.0,0.39381829]
[1760862010622,0.01475472,107410.0,107400.0,0.37671061]
[1760862011299,0.01475472,107410.0,107400.0,0.77671061]
[1760862011873,0.01475472,107410.0,107400.0,0.49441088]
[1760862012275,0.01475472,107410.0,107400.0,0.59049088]
[1760862012808,0.01475472,107410.0,107400.0,0.19049088]
[1760862013208,0.01475472,107410.0,107400.0,0.37667061]
[1760862013456,0.01475472,107410.0,107400.0,0.19045088]
[1760862013795,0.0165395,107410.0,107400.0,0.19045088]
[1760862014887,0.0165395,107410.0,107400.0,0.09441088]
[1760862015019,5.0165395,107410.0,107400.0,0.19045088]
[1760862015226,5.0165395,107410.0,107400.0,0.09441088]
[1760862015424,5.0165395,107410.0,107400.0,0.19041088]
[1760862016420,5.0165395,107410.0,107400.0,0.09441088]
[1760862016616,5.00193391,107410.0,107400.0,0.09441088]
[1760862017523,5.00127526,107410.0,107400.0,0.09441088]
[1760862018262,5.00127526,107410.0,107400.0,0.11073936]
[1760862018493,5.18747766,107410.0,107400.0,0.09441088]
[1760862018693,5.0,107400.0,107380.0,0.10915936]
[1760862018923,5.0,107400.0,107390.0,0.09441088]
[1760862019285,5.00162322,107400.0,107390.0,0.10663138]
[1760862019696,5.0,107400.0,107390.0,0.10663138]
[1760862019905,5.0,107400.0,107390.0,0.09441088]
[1760862020188,5.01460702,107400.0,107390.0,0.09441088]
[1760862027062,5.01460702,107400.0,107380.0,0.01431132]
[1760862027063,5.20082675,107400.0,107380.0,0.01431132]
[1760862027263,5.0,107380.0,107360.0,0.01431132]
[1760862027470,5.0,107370.0,107360.0,0.09441088]
[1760862027675,5.18625525,107380.0,107360.0,0.09441088]
[1760862027836,5.00162356,107370.0,107360.0,0.09441088]
[1760862028043,5.00162356,107370.0,107360.0,0.37654]
[1760862028284,0.09604,107400.0,107370.0,0.19558099]
[1760862028436,5.0,107390.0,107380.0,0.10735692]
[1760862028670,5.0,107390.0,107380.0,0.10750605]
[1760862030120,5.28064349,107390.0,107380.0,0.01309517]
[1760862030350,0.18629414,107360.0,107340.0,0.02098098]
[1760862030669,5.18630665,107350.0,107340.0,0.0004975]
[1760862031834,5.20372725,107350.0,107340.0,0.0004975]
[1760862032475,0.18637592,107310.0,107280.0,0.0004]
[1760862032691,5.18640281,107300.0,107290.0,0.09441088]
[1760862032897,5.0,107300.0,107290.0,0.09441088]
[1760862034215,5.18639328,107300.0,107290.0,0.09441088]
[1760862035107,5.0,107300.0,107290.0,0.09441088]
[1760862035306,5.18639328,107300.0,107290.0,0.09441088]
[1760862035554,5.0,107300.0,107290.0,0.09441088]
[1760862035761,5.18589228,107300.0,107290.0,0.09441088]
[1760862036297,5.18589228,107300.0,107280.0,0.00054931]
[1760862036298,4.999499,107290.0,107280.0,0.00054931]
[1760862036511,5.18589238,107300.0,107280.0,0.1099804]
[1760862036721,4.999499,107290.0,107280.0,0.09496019]
[1760862037818,5.18590966,107290.0,107280.0,0.09496019]
[1760862038040,0.18646627,107260.0,107230.0,0.10604]
[1760862038264,4.999499,107250.0,107230.0,0.0004983]
[1760862038482,5.18597961,107250.0,107230.0,0.4004983]
[1760862038746,5.1859816,107250.0,107230.0,0.4004983]
[1760862038965,5.1859816,107250.0,107230.0,0.0004983]
[1760862038966,5.18598005,107250.0,107230.0,0.0004983]
[1760862039149,4.999499,107250.0,107230.0,0.0004983]
[1760862039389,4.999499,107240.0,107230.0,0.0004983]
[1760862039600,4.999499,107240.0,107230.0,0.09490918]
[1760862039806,4.999499,107250.0,107230.0,0.09490918]
[1760862040059,4.999499,107250.0,107240.0,0.09441088]
[1760862040287,4.999499,107250.0,107240.0,0.10973638]
[1760862040496,5.2803856,107250.0,107240.0,0.09441088]
[1760862040703,0.18649757,107240.0,107230.0,0.0004983]
[1760862040942,5.18599657,107240.0,107230.0,0.0004983]
[1760862041168,5.37644299,107240.0,107230.0,0.0004983]
[1760862041577,5.37806827,107240.0,107230.0,0.0004983]
[1760862041785,5.37644299,107240.0,107230.0,0.0004983]
[1760862041994,4.999499,107240.0,107230.0,0.0004983]
[1760862042414,5.18597955,107250.0,107230.0,0.0004983]
[1760862042594,5.18599657,107240.0,107230.0,0.0004983]
[1760862042821,4.999499,107240.0,107230.0,0.0004983]
[1760862043447,4.999499,107240.0,107230.0,0.09490918]
[1760862043652,5.095539,107250.0,107230.0,0.09490918]
[1760862043883,4.999499,107240.0,107230.0,0.09490918]
[1760862044508,5.095539,107250.0,107230.0,0.09490918]
[1760862044724,5.51412767,107240.0,107230.0,0.09490918]
[1760862044928,5.00112428,107240.0,107230.0,0.09490918]
[1760862047259,5.0955307,107240.0,107230.0,0.10787094]
[1760862047470,5.0955307,107240.0,107230.0,0.0004983]
[1760862047688,5.02612428,107240.0,107230.0,0.0004983]
[1760862047902,5.32329088,107240.0,107230.0,0.0004983]
[1760862048588,5.66329088,107240.0,107230.0,0.0004983]
[1760862048835,5.13679331,107240.0,107230.0,0.0004983]
[1760862049044,5.3216573,107240.0,107230.0,0.0004983]
[1760862049254,5.04075331,107240.0,107230.0,0.0004983]
[1760862049663,5.22725088,107240.0,107230.0,0.0004983]
[1760862050088,5.56725088,107240.0,107230.0,0.0004983]
[1760862051116,5.5656256,107240.0,107230.0,0.0004983]
[1760862051354,5.66003202,107240.0,107230.0,0.0004983]
[1760862051786,5.67722431,107240.0,107230.0,0.0004983]
[1760862052005,5.67722431,107240.0,107170.0,0.00897404]
[1760862052006,0.52659175,107190.0,107170.0,0.00897404]
[1760862052219,5.339499,107180.0,107170.0,0.00912346]
[1760862052459,5.52610097,107180.0,107170.0,0.00054942]
[1760862052685,5.339499,107180.0,107170.0,0.00054942]
[1760862052894,5.52610097,107180.0,107170.0,0.00054942]
[1760862053332,5.62218097,107180.0,107170.0,0.00054942]
[1760862053559,5.339499,107180.0,107170.0,0.00054942]
[1760862054002,5.339499,107180.0,107170.0,0.0367317]
[1760862054216,0.34162629,107180.0,107170.0,0.0367317]
[1760862054471,0.34162629,107180.0,107170.0,0.04692461]
[1760862054677,0.34162629,107180.0,107170.0,0.14133549]
[1760862055085,0.34162629,107180.0,107170.0,0.14886788]
[1760862055339,0.34162629,107180.0,107170.0,0.13114258]
[1760862056380,0.34162629,107180.0,107170.0,0.13851919]
[1760862056806,0.34162629,107180.0,107170.0,0.13114258]
[1760862057024,5.34162629,107180.0,107170.0,0.13114258]
[1760862057253,5.43603271,107180.0,107170.0,0.13114258]
[1760862057469,5.34162629,107180.0,107170.0,0.13114258]
[1760862058125,5.34,107180.0,107170.0,0.13114258]
[1760862058533,5.34162618,107180.0,107170.0,0.1318587]
[1760862058739,5.34162618,107180.0,107170.0,0.31847808]
[1760862058947,5.00162618,107180.0,107170.0,0.32601047]
[1760862059174,0.00162618,107180.0,107170.0,0.31847808]
[1760862059385,0.00162618,107180.0,107170.0,0.1318587]
[1760862059594,0.00162618,107180.0,107170.0,0.32515971]
[1760862059798,0.5156585,107220.0,107190.0,0.03618228]
[1760862060018,5.0,107210.0,107200.0,0.13721586]
[1760862060447,5.34,107210.0,107200.0,0.13721586]
[1760862061702,0.29196148,107230.0,107210.0,0.03618228]
[1760862061703,5.0,107230.0,107210.0,0.03618228]
[1760862061917,5.01730241,107230.0,107220.0,0.00666002]
[1760862062123,5.34,107220.0,107210.0,0.13059316]
[1760862063049,5.34,107220.0,107210.0,0.1355367]
[1760862063261,5.43440642,107220.0,107210.0,0.00014942]
[1760862063665,5.34,107220.0,107210.0,0.00014942]
[1760862064368,5.34,107220.0,107210.0,0.13562275]
[1760862065497,5.34,107220.0,107210.0,0.09944047]
[1760862065699,5.0,107230.0,107210.0,0.13562275]
[1760862065958,5.01735775,107230.0,107220.0,0.09441088]
[1760862066121,5.35735775,107230.0,107220.0,0.09441088]
[1760862066458,5.35735775,107230.0,107220.0,0.2317295]
[1760862066593,5.35735775,107230.0,107220.0,0.22679316]
[1760862067203,5.01735775,107230.0,107220.0,0.41332552]
[1760862067438,5.01735775,107230.0,107220.0,0.22679316]
[1760862067651,5.0,107230.0,107220.0,0.22679316]
[1760862068116,5.35739204,107230.0,107220.0,0.22679316]
[1760862068320,5.35739715,107230.0,107220.0,0.22679316]
[1760862068964,5.35739715,107230.0,107220.0,0.19061088]
[1760862069178,5.35739715,107230.0,107220.0,0.22679316]
[1760862069792,5.34,107230.0,107220.0,0.22679316]
[1760862070227,5.15311978,107230.0,107220.0,0.22679316]
[1760862070406,5.35625495,107230.0,107220.0,0.22679316]
[1760862070663,0.35625495,107230.0,107220.0,0.41332552]
[1760862071525,0.01625495,107230.0,107220.0,0.41332552]
[1760862071928,0.01462938,107230.0,107220.0,0.86155417]
[1760862072360,0.01462938,107230.0,107220.0,0.81332552]
[1760862074208,0.01462938,107230.0,107220.0,0.53059316]
[1760862074436,0.01462938,107230.0,107220.0,0.22659316]
[1760862074632,0.01462938,107230.0,107220.0,0.09441088]
[1760862074832,0.01462938,107230.0,107220.0,0.19045088]
[1760862075037,0.01462938,107230.0,107220.0,0.22663316]
[1760862075828,0.35462938,107230.0,107220.0,0.22663316]
[1760862076029,0.34,107230.0,107220.0,0.22663316]
[1760862076606,5.3765,107230.0,107220.0,0.09441088]
[1760862076811,5.34,107220.0,107210.0,0.00014942]
[1760862077235,5.0,107220.0,107210.0,0.00014942]
[1760862077645,5.025,107220.0,107210.0,0.00014942]
[1760862077858,4.81785187,107220.0,107210.0,0.00014942]
[1760862078063,5.19483065,107220.0,107210.0,0.00014942]
[1760862078305,5.21223176,107220.0,107210.0,0.00014942]
[1760862078514,5.2138576,107220.0,107210.0,0.00014942]
[1760862079365,5.5538576,107220.0,107210.0,0.00014942]
[1760862079787,5.45945118,107220.0,107210.0,0.00014942]
[1760862079993,5.45949118,107220.0,107210.0,0.00014942]
[1760862085036,5.47949115,107220.0,107210.0,0.00014942]
[1760862085522,5.31943643,107190.0,107180.0,0.00035803]
[1760862085782,5.43283754,107190.0,107180.0,0.00050746]
[1760862085993,5.43124396,107190.0,107180.0,0.00050746]
[1760862086203,5.52724396,107190.0,107180.0,0.00050746]
[1760862087953,5.52887044,107190.0,107180.0,0.00050746]
[1760862088574,5.33846402,107190.0,107180.0,0.00050746]
[1760862088775,5.43442402,107190.0,107180.0,0.00050746]
[1760862089083,5.44906251,107190.0,107180.0,0.00050746]
[1760862089653,5.35310251,107190.0,107180.0,0.00050746]
[1760862089808,5.44906251,107190.0,107180.0,0.00050746]
[1760862089971,5.54346893,107190.0,107180.0,0.00050746]
[1760862094972,5.35310251,107190.0,107180.0,0.00050746]
[1760862095172,5.14911684,107190.0,107180.0,0.00050746]
[1760862095449,5.3357014,107190.0,107180.0,0.00050746]
[1760862095660,5.4316214,107190.0,107180.0,0.00050746]
[1760862096069,5.14911684,107190.0,107180.0,0.00050746]
[1760862096271,5.4316214,107190.0,107180.0,0.00050746]
[1760862096480,5.24503684,107190.0,107180.0,0.00050746]
[1760862096707,5.3357014,107190.0,107180.0,0.00050746]
[1760862096918,5.4315814,107190.0,107180.0,0.00050746]
[1760862097076,5.24499684,107190.0,107180.0,0.00050746]
[1760862097859,5.4315814,107190.0,107180.0,0.00050746]
[1760862098625,5.3357014,107190.0,107180.0,0.00050746]
[1760862098764,5.4315814,107190.0,107180.0,0.00050746]
[1760862099171,5.24495684,107190.0,107180.0,0.00050746]
[1760862100437,5.23031835,107190.0,107180.0,0.00050746]
[1760862100650,5.23027835,107190.0,107180.0,0.00050746]
[1760862101320,5.41686291,107190.0,107180.0,0.00050746]
[1760862101756,5.23027835,107190.0,107180.0,0.00050746]
[1760862102858,4.79447835,107190.0,107180.0,0.00050746]
[1760862103065,4.79447835,107190.0,107180.0,0.2861821]
[1760862103296,5.13447835,107190.0,107180.0,0.28152031]
[1760862103506,5.13447835,107190.0,107180.0,0.13110062]
[1760862103712,5.13447835,107190.0,107180.0,0.13759268]
[1760862103713,4.79447835,107190.0,107180.0,0.13759268]
[1760862103944,5.13285187,107190.0,107180.0,0.13759268]
[1760862104605,5.14748734,107190.0,107180.0,0.13759268]
[1760862106558,5.14748734,107190.0,107180.0,0.32419465]
[1760862106837,4.80748734,107190.0,107180.0,0.31770259]
[1760862107249,0.01463547,107190.0,107180.0,0.41342259]
[1760862108319,0.01626142,107190.0,107180.0,0.86165124]
[1760862109245,5.34,107210.0,107200.0,0.18656716]
[1760862109478,0.34162583,107210.0,107200.0,0.37673804]
[1760862109697,0.34162583,107210.0,107200.0,0.77673804]
[1760862112569,0.00162583,107210.0,107200.0,0.38573804]
[1760862112953,0.025,107220.0,107210.0,0.22273204]